bitfinex/quotes_BTCUSD_20241001
["timestamp","ask_amount","ask_price","bid_price","bid_amount"]
[1727795257655,0.3174338,62121.0,62120.0,0.5]
[1727795258446,0.58883422,62121.0,62120.0,0.5]
[1727795258690,0.60383422,62121.0,62120.0,0.28417083]
[1727795258917,0.160999,62112.0,62111.0,0.00082]
[1727795259218,0.3174568,62112.0,62111.0,0.00082]
[1727795259421,0.32754244,62112.0,62111.0,0.00082]
[1727795260433,0.32954244,62112.0,62111.0,0.00082]
[1727795260706,0.161028,62101.0,62100.0,4e-05]
[1727795260992,0.3174858,62101.0,62100.0,4e-05]
[1727795261457,0.161028,62101.0,62100.0,4e-05]
[1727795261928,0.161016,62106.0,62100.0,4e-05]
[1727795262201,0.0049,62121.0,62101.0,0.322054]
[1727795262202,0.0298105,62105.0,62101.0,0.322054]
[1727795262453,0.321995,62113.0,62103.0,0.1]
[1727795262697,0.23919058,62115.0,62107.0,0.32202]
[1727795262992,0.23919058,62114.0,62106.0,0.322026]
[1727795263206,0.23919058,62114.0,62107.0,0.1964]
[1727795263207,0.161009,62108.0,62107.0,0.1964]
[1727795263435,0.02523116,62119.0,62107.0,0.1964]
[1727795263667,0.161009,62108.0,62107.0,0.1964]
[1727795264416,0.17969846,62108.0,62107.0,0.1964]
[1727795264677,0.01868946,62108.0,62107.0,0.1964]
[1727795264918,0.41888904,62108.0,62107.0,0.23376723]
[1727795265178,0.41888904,62108.0,62100.0,4e-05]
[1727795265179,0.20037694,62108.0,62100.0,4e-05]
[1727795265424,0.20037694,62108.0,62102.0,0.161024]
[1727795265425,0.161016,62106.0,62102.0,0.161024]
[1727795265659,0.01868946,62105.0,62104.0,0.26102]
[1727795266201,0.01868946,62105.0,62104.0,0.1]
[1727795266449,0.17970646,62105.0,62104.0,0.1]
[1727795266702,0.01868946,62105.0,62101.0,0.161027]
[1727795266962,0.18623968,62108.0,62102.0,0.32205]
[1727795266963,0.01868946,62104.0,62102.0,0.32205]
[1727795267199,0.02522968,62108.0,62107.0,0.161012]
[1727795267483,0.01859916,62108.0,62107.0,0.6394908]
[1727795268021,0.326855,62121.0,62115.0,0.160991]
[1727795268022,0.23919058,62116.0,62115.0,0.160991]
[1727795268222,0.23919058,62116.0,62112.0,0.321994]
[1727795268455,0.321927,62126.0,62113.0,0.1305689]
[1727795268720,0.23919058,62117.0,62115.0,0.321983]
[1727795268974,0.160974,62122.0,62117.0,0.160985]
[1727795269220,0.160963,62127.0,62118.0,0.321965]
[1727795269470,0.02412148,62143.0,62116.0,0.1]
[1727795269471,0.01881385,62124.0,62116.0,0.1]
[1727795269708,0.160969,62124.0,62119.0,0.1]
[1727795269956,0.26331206,62144.0,62126.0,0.1]
[1727795269957,0.2633894,62144.0,62126.0,0.1]
[1727795270202,0.2633894,62144.0,62121.0,0.1]
[1727795270203,0.2633894,62144.0,62133.0,0.260945]
[1727795270452,0.23919058,62144.0,62143.0,0.25785717]
[1727795270692,0.27929599,62144.0,62143.0,0.61311497]
[1727795270927,0.05887458,62144.0,62143.0,0.76956175]
[1727795271186,0.01546811,62151.0,62150.0,0.160901]
[1727795271441,0.01546811,62151.0,62150.0,0.4173588]
[1727795271984,0.02584282,62160.0,62153.0,0.1]
[1727795272229,0.02584282,62160.0,62159.0,0.160877]
[1727795272230,0.001644,62160.0,62159.0,0.160877]
[1727795272453,0.001644,62160.0,62159.0,0.18589513]
[1727795272698,0.001644,62160.0,62159.0,0.44677213]
[1727795273163,0.02419882,62168.0,62166.0,0.160859]
[1727795273395,0.01546811,62170.0,62169.0,0.260851]
[1727795273632,0.0155004,62171.0,62170.0,0.260849]
[1727795273912,0.03971462,62171.0,62170.0,0.4173068]
[1727795274171,0.03971462,62173.0,62172.0,0.260844]
[1727795274437,0.23919058,62190.0,62175.0,0.260836]
[1727795274438,0.03971462,62176.0,62175.0,0.260836]
[1727795274669,0.39998858,62190.0,62175.0,0.260836]
[1727795274670,0.0155004,62177.0,62176.0,0.260833]
[1727795274960,0.23919058,62190.0,62176.0,0.260833]
[1727795274961,0.0155004,62178.0,62177.0,0.260831]
[1727795275240,0.23919058,62190.0,62177.0,0.260831]
[1727795275241,0.23919058,62190.0,62177.0,0.2564578]
[1727795275525,0.03919058,62190.0,62189.0,0.2608]
[1727795275738,0.001642,62197.0,62194.0,0.1]
[1727795275964,0.001642,62197.0,62191.0,0.160793]
[1727795276201,0.001642,62197.0,62180.0,0.321646]
[1727795276440,0.151642,62200.0,62179.0,0.23919058]
[1727795276948,0.151642,62200.0,62192.0,0.160791]
[1727795277195,0.0251961,62196.0,62180.0,0.005]
[1727795277454,0.23919058,62195.0,62181.0,0.1564578]
[1727795277688,0.0251961,62196.0,62182.0,0.08640324]
[1727795277925,0.23919058,62195.0,62184.0,0.1]
[1727795278180,0.23919058,62195.0,62186.0,0.1]
[1727795278408,0.321575,62194.0,62186.0,0.1]
[1727795278664,0.23919058,62195.0,62187.0,0.01]
[1727795278899,0.16081,62185.0,62180.0,0.23919058]
[1727795279133,0.160815,62184.0,62180.0,0.23919058]
[1727795279394,0.160817,62183.0,62173.0,0.1941]
[1727795279641,0.23919058,62180.0,62170.0,0.0781]
[1727795279875,0.160839,62174.0,62171.0,0.23919058]
[1727795280147,0.160846,62171.0,62170.0,0.0781]
[1727795280414,0.01794941,62171.0,62162.0,0.23919058]
[1727795280692,0.16086,62166.0,62162.0,0.23919058]
[1727795280946,0.01794941,62165.0,62162.0,0.29914764]
[1727795281217,0.01794941,62164.0,62155.0,0.23919058]
[1727795281464,0.23919058,62171.0,62148.0,0.03222]
[1727795281465,0.41355596,62163.0,62148.0,0.03222]
[1727795281699,0.41355596,62163.0,62138.0,0.0778]
[1727795281700,0.160913,62145.0,62138.0,0.0778]
[1727795282178,0.160913,62145.0,62136.0,0.23919058]
[1727795282442,0.160952,62130.0,62129.0,0.23919058]
[1727795282868,0.1564578,62144.0,62130.0,0.160951]
[1727795283080,0.23919058,62134.0,62131.0,0.00152343]
[1727795283306,0.23919058,62141.0,62124.0,0.0778]
[1727795283528,0.1564578,62133.0,62119.0,0.23919058]
[1727795283756,0.160978,62120.0,62119.0,0.23919058]
[1727795284204,0.1564578,62133.0,62109.0,0.0786]
[1727795284205,0.23919058,62132.0,62109.0,0.0786]
[1727795284455,0.1564578,62131.0,62118.0,0.23919058]
[1727795284690,0.1564578,62131.0,62112.0,0.321996]
[1727795284691,0.23919058,62124.0,62112.0,0.321996]
[1727795284926,0.39564838,62131.0,62113.0,0.321991]
[1727795285148,0.39564838,62131.0,62111.0,0.03186136]
[1727795285149,0.23919058,62124.0,62114.0,0.11501107]
[1727795285365,0.160999,62112.0,62111.0,0.03186136]
[1727795285578,0.160999,62112.0,62109.0,0.0786]
[1727795285579,0.160996,62114.0,62110.0,0.23919058]
[1727795285795,0.321974,62117.0,62109.0,0.0786]
[1727795286028,0.321974,62117.0,62107.0,0.000823]
[1727795286029,0.322009,62110.0,62107.0,0.000823]
[1727795286240,0.321984,62115.0,62107.0,0.000823]
[1727795286456,0.322003,62112.0,62107.0,0.000823]
[1727795286668,0.1564578,62114.0,62107.0,0.000823]
[1727795286669,0.02522981,62114.0,62107.0,0.000823]
[1727795286891,0.02522981,62114.0,62113.0,0.160996]
[1727795287108,0.02522981,62114.0,62112.0,0.160997]
[1727795287366,0.02522981,62114.0,62111.0,0.161001]
[1727795287583,0.23919058,62126.0,62107.0,0.000823]
[1727795287584,0.161009,62109.0,62107.0,0.000823]
[1727795287801,0.321984,62115.0,62107.0,0.000823]
[1727795288017,0.23919058,62112.0,62107.0,0.000823]
[1727795288228,0.40019958,62108.0,62107.0,0.000823]
[1727795288448,0.168028,62101.0,62100.0,4e-05]
[1727795288669,0.168028,62101.0,62087.0,0.23919058]
[1727795288670,0.161061,62088.0,62087.0,0.23919058]
[1727795288885,0.3175188,62088.0,62087.0,0.23919058]
[1727795289109,0.3175188,62088.0,62076.0,0.23919058]
[1727795289110,0.16109,62077.0,62076.0,0.23919058]
[1727795289322,0.3175478,62077.0,62076.0,0.23919058]
[1727795289538,0.1611,62073.0,62072.0,0.04782463]
[1727795290172,0.23919058,62085.0,62070.0,0.000821]
[1727795290178,0.23919058,62085.0,62070.0,0.04864563]
[1727795290179,0.161103,62073.0,62070.0,0.04864563]
[1727795290403,0.161082,62081.0,62071.0,0.04782463]
[1727795290621,0.322181,62077.0,62073.0,0.04782891]
[1727795290851,0.322181,62077.0,62070.0,0.000821]
[1727795290852,0.161105,62071.0,62070.0,0.000821]
[1727795291338,0.3175628,62071.0,62070.0,0.000821]
[1727795291799,0.3325628,62071.0,62070.0,0.000821]
[1727795292035,0.161142,62057.0,62056.0,0.05658562]
[1727795292261,0.3175998,62057.0,62056.0,0.00875603]
[1727795292758,0.161142,62057.0,62056.0,0.00875603]
[1727795293222,0.23919058,62077.0,62056.0,0.17384578]
[1727795293447,0.23919058,62063.0,62057.0,0.18602786]
[1727795293664,0.322208,62072.0,62058.0,0.36988751]
[1727795294146,0.23919058,62070.0,62068.0,0.09569854]
[1727795294149,0.23919058,62070.0,62067.0,0.09569854]
[1727795294405,0.00100003,62069.0,62067.0,0.09569931]
[1727795294641,0.00100003,62069.0,62066.0,0.09569931]
[1727795294642,0.1564578,62068.0,62066.0,0.09569931]
[1727795294875,0.16211603,62067.0,62066.0,0.09569931]
[1727795295104,0.161118,62066.0,62065.0,0.09569931]
[1727795295328,0.161118,62066.0,62063.0,0.11962317]
[1727795295329,0.163124,62064.0,62063.0,0.11962317]
[1727795295559,0.163124,62064.0,62054.0,0.23919058]
[1727795295560,0.322256,62063.0,62057.0,0.14354822]
[1727795295785,0.161111,62069.0,62060.0,0.161132]
[1727795296038,0.005,62089.0,62066.0,0.14353122]
[1727795296280,0.40027758,62078.0,62077.0,0.07176542]
[1727795296753,0.16109,62077.0,62076.0,0.07176542]
[1727795296981,0.23919058,62085.0,62076.0,0.07176542]
[1727795296982,0.02524754,62089.0,62076.0,0.16571277]
[1727795297234,0.23919058,62086.0,62081.0,0.047842]
[1727795297465,0.161074,62083.0,62082.0,0.047842]
[1727795297693,0.161074,62083.0,62082.0,0.20874606]
[1727795297947,0.161074,62083.0,62082.0,0.07176308]
[1727795298412,0.161074,62083.0,62080.0,0.09568411]
[1727795298413,0.161079,62081.0,62080.0,0.09568411]
[1727795298655,0.498256,62079.0,62078.0,0.01356078]
[1727795298897,0.015,62070.0,62069.0,0.09568411]
[1727795299135,0.015,62070.0,62064.0,0.09568411]
[1727795299136,0.161121,62065.0,62064.0,0.09568411]
[1727795299408,0.161121,62065.0,62061.0,0.23919058]
[1727795299409,0.322252,62064.0,62061.0,0.23919058]
[1727795299642,0.3175838,62063.0,62062.0,0.18031973]
[1727795299876,0.002,62072.0,62062.0,0.18031973]
[1727795299877,0.23919058,62080.0,62063.0,0.23919058]
[1727795300096,0.322225,62069.0,62064.0,0.1322749]
[1727795300320,0.161117,62067.0,62064.0,0.1322749]
[1727795300550,0.161117,62067.0,62065.0,0.18005613]
[1727795300774,0.161099,62074.0,62067.0,0.08446973]
[1727795300996,0.322169,62080.0,62071.0,0.09570795]
[1727795301229,0.322169,62080.0,62069.0,0.11963494]
[1727795301230,0.23919058,62072.0,62069.0,0.11963494]
[1727795301462,0.23919058,62094.0,62070.0,0.33711328]
[1727795301905,0.23919058,62087.0,62086.0,0.161066]
[1727795301907,0.23919058,62094.0,62085.0,0.46572756]
[1727795302160,0.23919058,62102.0,62086.0,0.55676961]
[1727795302460,0.23919058,62102.0,62101.0,0.161028]
[1727795302697,0.56115458,62119.0,62094.0,0.005]
[1727795302698,0.23919058,62119.0,62094.0,0.005]
[1727795302931,0.23919058,62119.0,62088.0,0.09570384]
[1727795302932,0.23919058,62102.0,62088.0,0.09570384]
[1727795303169,0.23919058,62102.0,62082.0,0.483229]
[1727795303170,0.002,62100.0,62091.0,0.23919058]
[1727795303426,0.23919058,62112.0,62083.0,0.23919058]
[1727795303427,0.161072,62084.0,62083.0,0.23919058]
[1727795303697,0.161072,62084.0,62083.0,0.28704091]
[1727795303937,0.161072,62084.0,62075.0,0.1196298]
[1727795303938,0.16109,62077.0,62075.0,0.09570384]
[1727795304186,0.161092,62076.0,62075.0,0.09570384]
[1727795304464,0.161092,62076.0,62075.0,0.16509182]
[1727795304729,0.23919058,62086.0,62075.0,0.19702972]
[1727795304969,0.23919058,62086.0,62074.0,0.1196298]
[1727795304970,0.23919058,62078.0,62076.0,0.04785462]
[1727795305211,0.1611,62073.0,62072.0,0.09571081]
[1727795305476,0.1611,62073.0,62072.0,0.04786931]
[1727795305732,0.1611,62073.0,62071.0,0.04786931]
[1727795305733,0.166103,62072.0,62071.0,0.04786931]
[1727795306023,0.161118,62066.0,62065.0,0.09574957]
[1727795306271,0.161118,62066.0,62065.0,0.14363466]
[1727795306272,0.3175758,62066.0,62065.0,0.14363466]
[1727795306500,0.3175758,62066.0,62065.0,0.17687527]
[1727795306811,0.55676638,62066.0,62065.0,0.17708763]
[1727795307074,0.161129,62062.0,62061.0,0.095815]
[1727795307303,0.161134,62060.0,62059.0,0.11976875]
[1727795307530,0.161142,62057.0,62056.0,0.15247854]
[1727795307761,0.3175998,62057.0,62056.0,0.18366599]
[1727795308694,0.3175998,62057.0,62056.0,0.2003418]
[1727795308939,0.3175998,62057.0,62056.0,0.18366599]
[1727795309455,0.161142,62057.0,62056.0,0.18366599]
[1727795309714,0.161142,62057.0,62056.0,0.18401504]
[1727795309715,0.3175998,62057.0,62056.0,0.18401504]
[1727795310644,0.0054,62063.0,62056.0,0.21681139]
[1727795310885,0.161142,62057.0,62056.0,0.00875603]
[1727795311113,0.161142,62057.0,62056.0,0.13526903]
[1727795311352,0.161142,62057.0,62056.0,0.18311705]
[1727795311589,0.161142,62057.0,62056.0,0.1287758]
[1727795311833,0.322269,62060.0,62057.0,0.1]
[1727795311834,0.161135,62060.0,62057.0,0.1]
[1727795312075,0.0054,62063.0,62059.0,0.261135]
[1727795312326,0.0054,62063.0,62062.0,0.261129]
[1727795312919,0.23919058,62077.0,62070.0,0.1]
[1727795312921,0.23919058,62077.0,62076.0,0.261092]
[1727795313235,0.001644,62083.0,62077.0,0.1]
[1727795313236,0.161078,62082.0,62077.0,0.1]
[1727795313418,0.161086,62079.0,62077.0,0.1]
[1727795313644,0.322155,62082.0,62077.0,0.1]
[1727795313645,0.161078,62082.0,62077.0,0.1]
[1727795313873,0.001644,62083.0,62078.0,0.15967154]
[1727795314101,0.001644,62083.0,62081.0,0.1]
[1727795314324,0.001644,62083.0,62080.0,0.161081]
[1727795314325,0.001644,62083.0,62082.0,0.4175348]
[1727795314583,0.001644,62083.0,62082.0,0.2564578]
[1727795314841,0.001644,62083.0,62082.0,0.4325348]
[1727795315059,0.23919058,62102.0,62094.0,0.1]
[1727795315275,0.23919058,62102.0,62097.0,0.1]
[1727795315650,0.23919058,62109.0,62104.0,0.1]
[1727795315964,0.23919058,62129.0,62103.0,0.322043]
[1727795315965,0.23919058,62129.0,62109.0,0.1]
[1727795316228,0.160976,62121.0,62111.0,0.161]
[1727795316469,0.56115358,62119.0,62110.0,0.0822]
[1727795316692,0.02523092,62117.0,62113.0,0.1]
[1727795317662,0.160989,62116.0,62113.0,0.1]
[1727795317914,0.02523092,62117.0,62113.0,0.260996]
[1727795318137,0.02523092,62117.0,62116.0,0.260989]
[1727795318366,0.02523092,62117.0,62116.0,0.57389358]
[1727795318615,0.02523092,62117.0,62116.0,0.1]
[1727795318844,0.23919058,62126.0,62117.0,0.1]
[1727795319069,0.23919058,62126.0,62110.0,0.0822]
[1727795319070,0.23919058,62118.0,62110.0,0.0822]
[1727795319296,0.321942,62123.0,62114.0,0.23919058]
[1727795319546,0.160974,62122.0,62110.0,0.0822]
[1727795319821,0.321857,62140.0,62110.0,0.0822]
[1727795319822,0.23919058,62124.0,62120.0,0.51433748]
[1727795320043,0.23919058,62124.0,62110.0,0.0822]
[1727795320265,0.160963,62126.0,62115.0,0.1]
[1727795320483,0.321913,62129.0,62114.0,0.56117858]
[1727795320484,0.321921,62127.0,62120.0,0.1]
[1727795320719,0.321851,62141.0,62120.0,0.61433748]
[1727795320939,0.321851,62141.0,62122.0,0.1]
[1727795321161,0.23919058,62128.0,62114.0,0.51433748]
[1727795321374,0.160966,62125.0,62119.0,0.23919058]
[1727795321599,0.1564578,62134.0,62114.0,0.1]
[1727795321600,0.321952,62121.0,62114.0,0.1]
[1727795321843,0.323866,62138.0,62108.0,0.23919058]
[1727795321844,0.1564578,62120.0,62108.0,0.23919058]
[1727795322073,0.161007,62109.0,62108.0,0.23919058]
[1727795322335,0.001644,62117.0,62108.0,0.02391906]
[1727795322558,0.23919058,62116.0,62110.0,0.51433748]
[1727795322791,0.001644,62117.0,62110.0,0.51433748]
[1727795322792,0.23919058,62115.0,62110.0,0.51433748]
[1727795323019,0.001644,62117.0,62108.0,0.02391906]
[1727795323020,0.001644,62117.0,62114.0,0.51433748]
[1727795323478,0.001644,62117.0,62116.0,0.160989]
[1727795323701,0.001644,62117.0,62116.0,0.19973095]
[1727795323987,0.001644,62117.0,62116.0,0.1]
[1727795324218,0.001644,62117.0,62116.0,0.260989]
[1727795325383,0.001644,62117.0,62116.0,0.4174468]
[1727795325607,0.001644,62117.0,62116.0,0.4959468]
[1727795326896,0.001644,62117.0,62116.0,0.7259668]
[1727795327158,0.04641282,62133.0,62116.0,0.7259668]
[1727795327159,0.04641282,62133.0,62128.0,0.1]
[1727795327470,0.23919058,62135.0,62127.0,0.51433748]
[1727795327471,0.35551645,62132.0,62131.0,0.1]
[1727795327681,0.29223062,62132.0,62131.0,0.61433748]
[1727795327903,0.24149955,62132.0,62131.0,0.77528748]
[1727795328143,0.25081951,62132.0,62131.0,0.77528748]
[1727795328420,0.15828728,62146.0,62134.0,0.005]
[1727795328421,0.14007638,62140.0,62134.0,0.005]
[1727795328699,0.001644,62146.0,62145.0,0.160913]
[1727795328904,0.12472391,62146.0,62145.0,0.67525048]
[1727795329138,0.09712388,62146.0,62145.0,0.51433748]
[1727795329401,0.09712388,62146.0,62145.0,0.08361895]
[1727795329402,0.12493591,62146.0,62145.0,0.08361895]
[1727795329653,0.12493591,62146.0,62139.0,0.61433748]
[1727795329893,0.1461366,62145.0,62141.0,0.1]
[1727795330112,0.001644,62146.0,62144.0,0.61433748]
[1727795330363,0.001644,62146.0,62145.0,0.2564578]
[1727795330609,0.09386524,62146.0,62145.0,0.4173708]
[1727795330858,0.07217459,62146.0,62145.0,0.54811047]
[1727795331083,0.07217459,62146.0,62145.0,0.57533047]
[1727795331084,0.05830709,62146.0,62145.0,0.57533047]
[1727795331341,0.08560475,62146.0,62145.0,0.54311047]
[1727795331604,0.08560475,62146.0,62145.0,0.38219747]
[1727795331605,0.13632688,62146.0,62145.0,0.38219747]
[1727795332058,0.16154006,62146.0,62145.0,0.62138805]
[1727795332324,0.11129266,62146.0,62145.0,0.54811047]
[1727795332847,0.083995,62146.0,62145.0,0.22573967]
[1727795332861,0.083995,62146.0,62138.0,0.51317786]
[1727795332862,0.023,62145.0,62138.0,0.51317786]
[1727795333112,0.09336693,62140.0,62138.0,0.51317786]
[1727795333371,0.05027576,62139.0,62131.0,0.15644678]
[1727795333624,0.09338295,62140.0,62131.0,0.15644678]
[1727795333625,0.023,62136.0,62131.0,0.15644678]
[1727795333895,0.05027576,62136.0,62132.0,0.23919058]
[1727795334139,0.02727576,62136.0,62133.0,0.51317786]
[1727795334405,0.02727576,62135.0,62133.0,0.51317786]
[1727795334619,0.02727576,62135.0,62123.0,0.015]
[1727795334620,0.02727576,62135.0,62126.0,0.51317786]
[1727795334845,0.02727576,62134.0,62129.0,0.23919058]
[1727795335098,0.05249514,62133.0,62132.0,0.51317786]
[1727795335328,0.05249514,62133.0,62132.0,0.61317786]
[1727795335776,0.07549514,62133.0,62132.0,0.61317786]
[1727795336020,0.07549514,62133.0,62132.0,0.1]
[1727795336527,0.023,62132.0,62131.0,0.000821]
[1727795336776,0.07747816,62132.0,62131.0,0.000821]
[1727795337001,0.23842516,62132.0,62131.0,0.000821]
[1727795337231,0.07747816,62132.0,62131.0,0.000821]
[1727795337466,0.2119877,62132.0,62131.0,0.000821]
[1727795337695,0.23879074,62132.0,62131.0,0.000821]
[1727795338172,0.07784374,62132.0,62131.0,0.000821]
[1727795338633,0.07784374,62132.0,62131.0,0.06222089]
[1727795338857,0.07784374,62132.0,62131.0,0.000821]
[1727795339350,0.0280407,62132.0,62131.0,0.000821]
[1727795339608,0.04354809,62132.0,62131.0,0.000821]
[1727795339848,0.04354809,62132.0,62127.0,0.08545708]
[1727795339849,0.0280407,62132.0,62127.0,0.08545708]
[1727795340127,0.0280407,62131.0,62128.0,0.1564578]
[1727795340404,0.01715657,62131.0,62128.0,0.1564578]
[1727795340609,0.023,62129.0,62128.0,0.1564578]
[1727795340823,0.023,62129.0,62127.0,0.33791863]
[1727795340824,0.06759691,62129.0,62127.0,0.33791863]
[1727795341047,0.023,62129.0,62128.0,0.3174158]
[1727795341341,0.023,62129.0,62123.0,0.002]
[1727795341342,0.160968,62124.0,62117.0,0.03222]
[1727795341579,0.023,62127.0,62113.0,0.23919058]
[1727795341580,0.023,62122.0,62113.0,0.23919058]
[1727795341802,0.04669408,62131.0,62121.0,0.51317786]
[1727795342054,0.41527016,62135.0,62121.0,0.51317786]
[1727795342055,0.23919058,62127.0,62121.0,0.51317786]
[1727795342297,0.04456419,62126.0,62122.0,0.160972]
[1727795342519,0.04456419,62125.0,62114.0,0.1564578]
[1727795342757,0.321947,62122.0,62110.0,0.0822]
[1727795343012,0.23919058,62124.0,62115.0,0.23919058]
[1727795343013,0.023,62118.0,62115.0,0.23919058]
[1727795343259,0.023,62115.0,62110.0,0.0822]
[1727795343498,0.04456419,62114.0,62110.0,0.0822]
[1727795343732,0.321971,62118.0,62106.0,0.23919058]
[1727795343733,0.06756419,62113.0,62106.0,0.23919058]
[1727795343982,0.06756419,62113.0,62100.0,4e-05]
[1727795343983,0.023,62117.0,62111.0,0.0530167]
[1727795344208,0.160998,62113.0,62101.0,0.51317786]
[1727795344446,0.161013,62107.0,62101.0,0.66963566]
[1727795344669,0.184017,62106.0,62101.0,0.51317786]
[1727795344952,0.184017,62106.0,62100.0,4e-05]
[1727795344953,0.023,62106.0,62100.0,4e-05]
[1727795345203,0.24615058,62119.0,62100.0,4e-05]
[1727795345204,0.023,62101.0,62100.0,4e-05]
[1727795345423,0.184028,62101.0,62100.0,4e-05]
[1727795345654,0.184028,62101.0,62074.0,0.79919423]
[1727795345655,0.1794578,62101.0,62074.0,0.79919423]
[1727795345928,0.184069,62085.0,62074.0,0.23919058]
[1727795346149,0.184069,62085.0,62068.0,0.000821]
[1727795346150,0.161111,62069.0,62068.0,0.000821]
[1727795346371,0.161111,62069.0,62068.0,0.28016275]
[1727795346608,0.161111,62069.0,62068.0,0.40714615]
[1727795347822,0.18636364,62069.0,62068.0,0.40714615]
[1727795348060,0.18636364,62069.0,62068.0,0.05886745]
[1727795348061,0.04825264,62069.0,62068.0,0.05886745]
[1727795348311,0.04825264,62069.0,62068.0,0.03486745]
[1727795348312,0.36582144,62069.0,62068.0,0.03486745]
[1727795348525,0.166086,62063.0,62062.0,0.0497541]
[1727795348754,0.3175838,62063.0,62062.0,0.3482787]
[1727795349221,0.3315127,62063.0,62062.0,0.3482787]
[1727795350166,0.3175838,62063.0,62062.0,0.0497541]
[1727795350410,0.3175838,62063.0,62062.0,0.04264637]
[1727795350411,0.35425004,62063.0,62062.0,0.04264637]
[1727795350646,0.3405838,62063.0,62062.0,0.04264637]
[1727795351126,0.35424733,62063.0,62062.0,0.04264637]
[1727795351385,0.35425742,62063.0,62062.0,0.04264637]
[1727795351598,0.3405838,62063.0,62062.0,0.04264637]
[1727795351825,0.3542578,62063.0,62062.0,0.04264637]
[1727795352326,0.1748,62063.0,62062.0,0.04264637]
[1727795352545,0.18847391,62063.0,62062.0,0.09215325]
[1727795352769,0.3565105,62063.0,62062.0,0.04264637]
[1727795353011,0.3614705,62063.0,62062.0,0.04264637]
[1727795353466,0.3714705,62063.0,62062.0,0.01864637]
[1727795353692,0.2000527,62063.0,62062.0,0.25783695]
[1727795353936,0.2000527,62063.0,62062.0,0.01864637]
[1727795354173,0.3565105,62063.0,62062.0,0.01864637]
[1727795355650,0.3795105,62063.0,62062.0,0.01864637]
[1727795356102,0.2000527,62063.0,62062.0,0.01864637]
[1727795356352,0.1863787,62063.0,62062.0,0.01864637]
[1727795356579,0.0252527,62063.0,62062.0,0.71422423]
[1727795356809,0.0252527,62063.0,62062.0,1.02987564]
[1727795357040,0.0252527,62063.0,62062.0,1.19600464]
[1727795357260,0.23919058,62093.0,62077.0,0.16309]
[1727795357261,0.23919058,62078.0,62077.0,0.16309]
[1727795357510,0.23919058,62093.0,62082.0,0.1]
[1727795357769,0.23919058,62093.0,62081.0,0.193298]
[1727795357770,0.23919058,62093.0,62084.0,0.1]
[1727795357988,0.161037,62082.0,62071.0,0.01464415]
[1727795358258,0.161037,62082.0,62081.0,0.0392178]
[1727795358259,0.161077,62082.0,62081.0,0.0392178]
[1727795358784,0.322142,62085.0,62081.0,0.0392178]
[1727795359002,0.161077,62082.0,62081.0,0.0392178]
[1727795359269,0.23919058,62093.0,62081.0,0.0392178]
[1727795359553,0.161077,62082.0,62081.0,0.0392178]
[1727795359745,0.1564578,62092.0,62081.0,0.0392178]
[1727795360029,0.24415058,62100.0,62081.0,0.0392178]
[1727795360030,0.322129,62087.0,62081.0,0.0392178]
[1727795360263,0.345141,62085.0,62081.0,0.0392178]
[1727795360531,0.184077,62082.0,62081.0,0.0392178]
[1727795360763,0.3405348,62082.0,62081.0,0.0392178]
[1727795361496,0.35653231,62082.0,62081.0,0.0392178]
[1727795361989,0.37517567,62082.0,62081.0,0.0392178]
[1727795362229,0.37717567,62082.0,62081.0,0.0392178]
[1727795362477,0.37717567,62082.0,62081.0,0.0400388]
[1727795362478,0.36117816,62082.0,62081.0,0.0400388]
[1727795362712,0.37117816,62082.0,62081.0,0.0400388]
[1727795363183,0.37117816,62082.0,62077.0,0.0392178]
[1727795363184,0.161131,62061.0,62050.0,4e-05]
[1727795363421,0.184131,62061.0,62060.0,0.47135048]
[1727795363687,0.184131,62061.0,62060.0,0.2321599]
[1727795364168,0.41864838,62061.0,62060.0,0.0331657]
[1727795364411,0.35425686,62061.0,62060.0,0.0331657]
[1727795365158,0.36121686,62061.0,62060.0,0.0303537]
[1727795365413,0.37121686,62061.0,62060.0,0.0303537]
[1727795365921,0.35425686,62061.0,62060.0,0.0303537]
[1727795366650,0.01366806,62061.0,62060.0,0.0303537]
[1727795366899,0.17479906,62061.0,62060.0,0.0303537]
[1727795367640,0.1908116,62061.0,62060.0,0.0303537]
[1727795367877,0.21606516,62061.0,62060.0,0.0303537]
[1727795368122,0.07793416,62061.0,62060.0,0.0303537]
[1727795368364,0.23906516,62061.0,62060.0,0.0303537]
[1727795368602,0.05493416,62061.0,62060.0,0.0303537]
[1727795368844,0.02525356,62061.0,62060.0,0.19272289]
[1727795369113,0.02525356,62061.0,62060.0,0.4479455]
[1727795369346,0.23919058,62072.0,62061.0,0.1]
[1727795369592,0.23919058,62072.0,62064.0,0.77430086]
[1727795369593,0.23919058,62065.0,62064.0,0.77430086]
[1727795369835,0.01613057,62071.0,62066.0,0.322233]
[1727795370109,0.23919058,62071.0,62070.0,0.1]
[1727795370350,0.41956744,62071.0,62066.0,0.0331657]
[1727795370608,0.161116,62067.0,62066.0,0.0331657]
[1727795370856,0.176076,62067.0,62066.0,0.0331657]
[1727795371095,0.3483013,62067.0,62066.0,0.0331657]
[1727795371345,0.38115559,62067.0,62066.0,0.0331657]
[1727795371610,0.38808808,62067.0,62066.0,0.0331657]
[1727795372177,0.39008808,62067.0,62066.0,0.0331657]
[1727795372439,0.40691543,62067.0,62066.0,0.0331657]
[1727795372677,0.40491543,62067.0,62066.0,0.0331657]
[1727795372945,0.33440115,62067.0,62066.0,0.0331657]
[1727795373437,0.34812213,62067.0,62066.0,0.0331657]
[1727795373909,0.34812213,62067.0,62049.0,0.23919058]
[1727795373910,0.161142,62057.0,62049.0,0.23919058]
[1727795374158,0.35432078,62057.0,62056.0,0.16689052]
[1727795374659,0.01372098,62057.0,62056.0,0.16689052]
[1727795374895,0.17486198,62058.0,62056.0,0.16689052]
[1727795375129,0.01372098,62057.0,62056.0,0.16689052]
[1727795375374,0.01682735,62067.0,62062.0,0.000821]
[1727795375615,0.322201,62073.0,62062.0,0.000821]
[1727795375616,0.23919058,62068.0,62062.0,0.000821]
[1727795375852,0.161096,62075.0,62064.0,0.161121]
[1727795376086,0.01682735,62076.0,62062.0,0.000821]
[1727795376087,0.23919058,62070.0,62065.0,0.0484194]
[1727795376343,0.01372303,62074.0,62073.0,0.1611]
[1727795376590,0.23919058,62079.0,62069.0,0.1]
[1727795376835,0.001642,62082.0,62081.0,0.161079]